Workbook

Sheet Sheet1
A1: 2024年连州市面向社会公开招聘编制教师笔试成绩及 进入面试资格审核人员名单
A2: 序号 | B2: 岗位代码 | C2: 招聘人数 | D2: 准考证号 | E2: 笔试成绩 | F2: 三支一扶 加分 | G2: 笔试综合成绩 | H2: 排名 | I2: 是否进入面试资格审核 | J2: 备注
A3: 1 | B3: 101 | C3: 3 | D3: 20241010111 | E3: 80.55 | G3: =E3+F3 -> 80.55 | H3: 1 | I3: 是
A4: 2 | B4: 101 | C4: 3 | D4: 20241010302 | E4: 78.75 | G4: 78.75 | H4: 2 | I4: 是
A5: 3 | B5: 101 | C5: 3 | D5: 20241010123 | E5: 78.42 | G5: 78.42 | H5: 3 | I5: 是
A6: 4 | B6: 101 | C6: 3 | D6: 20241010306 | E6: 77.28 | G6: 77.28 | H6: 4 | I6: 是
A7: 5 | B7: 101 | C7: 3 | D7: 20241010125 | E7: 76.28 | G7: 76.28 | H7: 5 | I7: 是
A8: 6 | B8: 101 | C8: 3 | D8: 20241010128 | E8: 73.98 | G8: 73.98 | H8: 6 | I8: 是
A9: 7 | B9: 101 | C9: 3 | D9: 20241010102 | E9: 73.17 | G9: 73.17 | H9: 7 | I9: 是
A10: 8 | B10: 101 | C10: 3 | D10: 20241010305 | E10: 72.20 | G10: 72.20 | H10: 8 | I10: 是
A11: 9 | B11: 101 | C11: 3 | D11: 20241010115 | E11: 71.47 | G11: 71.47 | H11: 9 | I11: 是
A12: 10 | B12: 101 | C12: 3 | D12: 20241010108 | E12: 70.44 | G12: 70.44 | H12: 10
A13: 11 | B13: 101 | C13: 3 | D13: 20241010211 | E13: 69.72 | G13: 69.72 | H13: 11
A14: 12 | B14: 101 | C14: 3 | D14: 20241010119 | E14: 69.63 | G14: 69.63 | H14: 12
A15: 13 | B15: 101 | C15: 3 | D15: 20241010208 | E15: 69.30 | G15: 69.30 | H15: 13
A16: 14 | B16: 101 | C16: 3 | D16: 20241010215 | E16: 68.15 | G16: 68.15 | H16: 14
A17: 15 | B17: 101 | C17: 3 | D17: 20241010205 | E17: 66.70 | G17: 66.70 | H17: 15
A18: 16 | B18: 101 | C18: 3 | D18: 20241010311 | E18: 66.07 | G18: 66.07 | H18: 16
A19: 17 | B19: 101 | C19: 3 | D19: 20241010303 | E19: 65.99 | G19: 65.99 | H19: 17
A20: 18 | B20: 101 | C20: 3 | D20: 20241010202 | E20: 64.01 | G20: 64.01 | H20: 18
A21: 19 | B21: 101 | C21: 3 | D21: 20241010103 | E21: 63.32 | G21: 63.32 | H21: 19
A22: 20 | B22: 101 | C22: 3 | D22: 20241010130 | E22: 63.20 | G22: 63.20 | H22: 20
A23: 21 | B23: 101 | C23: 3 | D23: 20241010110 | E23: 62.98 | G23: 62.98 | H23: 21
A24: 22 | B24: 101 | C24: 3 | D24: 20241010229 | E24: 61.92 | G24: 61.92 | H24: 22
A25: 23 | B25: 101 | C25: 3 | D25: 20241010227 | E25: 61.45 | G25: 61.45 | H25: 23
A26: 24 | B26: 101 | C26: 3 | D26: 20241010223 | E26: 61.02 | G26: 61.02 | H26: 24
A27: 25 | B27: 101 | C27: 3 | D27: 20241010316 | E27: 60.94 | G27: 60.94 | H27: 25
A28: 26 | B28: 101 | C28: 3 | D28: 20241010313 | E28: 60.68 | G28: 60.68 | H28: 26
A29: 27 | B29: 101 | C29: 3 | D29: 20241010309 | E29: 60.48 | G29: 60.48 | H29: 27
A30: 28 | B30: 101 | C30: 3 | D30: 20241010213 | E30: 60.38 | G30: 60.38 | H30: 28
A31: 29 | B31: 101 | C31: 3 | D31: 20241010216 | E31: 60.15 | G31: 60.15 | H31: 29
A32: 30 | B32: 101 | C32: 3 | D32: 20241010203 | E32: 59.57 | G32: 59.57 | H32: 30
A33: 31 | B33: 101 | C33: 3 | D33: 20241010117 | E33: 58.03 | G33: 58.03 | H33: 31
A34: 32 | B34: 101 | C34: 3 | D34: 20241010219 | E34: 54.59 | G34: 54.59 | H34: 32
A35: 33 | B35: 101 | C35: 3 | D35: 20241010124 | E35: 53.80 | G35: 53.80 | H35: 33
A36: 34 | B36: 101 | C36: 3 | D36: 20241010109 | E36: 46.60 | G36: 46.60 | H36: 34
A37: 35 | B37: 101 | C37: 3 | D37: 20241010120 | E37: 24.26 | G37: 24.26 | H37: 35
A38: 36 | B38: 101 | C38: 3 | D38: 20241010101 | J38: 缺考
A39: 37 | B39: 101 | C39: 3 | D39: 20241010104 | J39: 缺考
A40: 38 | B40: 101 | C40: 3 | D40: 20241010105 | J40: 缺考
A41: 39 | B41: 101 | C41: 3 | D41: 20241010106 | J41: 缺考
A42: 40 | B42: 101 | C42: 3 | D42: 20241010107 | J42: 缺考
A43: 41 | B43: 101 | C43: 3 | D43: 20241010112 | J43: 缺考
A44: 42 | B44: 101 | C44: 3 | D44: 20241010113 | J44: 缺考
A45: 43 | B45: 101 | C45: 3 | D45: 20241010114 | J45: 缺考
A46: 44 | B46: 101 | C46: 3 | D46: 20241010116 | J46: 缺考
A47: 45 | B47: 101 | C47: 3 | D47: 20241010118 | J47: 缺考
A48: 46 | B48: 101 | C48: 3 | D48: 20241010121 | J48: 缺考
A49: 47 | B49: 101 | C49: 3 | D49: 20241010122 | J49: 缺考
A50: 48 | B50: 101 | C50: 3 | D50: 20241010126 | J50: 缺考
A51: 49 | B51: 101 | C51: 3 | D51: 20241010127 | J51: 缺考
A52: 50 | B52: 101 | C52: 3 | D52: 20241010129 | J52: 缺考
A53: 51 | B53: 101 | C53: 3 | D53: 20241010201 | J53: 缺考
A54: 52 | B54: 101 | C54: 3 | D54: 20241010204 | J54: 缺考
A55: 53 | B55: 101 | C55: 3 | D55: 20241010206 | J55: 缺考
A56: 54 | B56: 101 | C56: 3 | D56: 20241010207 | J56: 缺考
A57: 55 | B57: 101 | C57: 3 | D57: 20241010209 | J57: 缺考
A58: 56 | B58: 101 | C58: 3 | D58: 20241010210 | J58: 缺考
A59: 57 | B59: 101 | C59: 3 | D59: 20241010212 | J59: 缺考
A60: 58 | B60: 101 | C60: 3 | D60: 20241010214 | J60: 缺考
A61: 59 | B61: 101 | C61: 3 | D61: 20241010217 | J61: 缺考
A62: 60 | B62: 101 | C62: 3 | D62: 20241010218 | J62: 缺考
A63: 61 | B63: 101 | C63: 3 | D63: 20241010220 | J63: 缺考
A64: 62 | B64: 101 | C64: 3 | D64: 20241010221 | J64: 缺考
A65: 63 | B65: 101 | C65: 3 | D65: 20241010222 | J65: 缺考
A66: 64 | B66: 101 | C66: 3 | D66: 20241010224 | J66: 缺考
A67: 65 | B67: 101 | C67: 3 | D67: 20241010225 | J67: 缺考
A68: 66 | B68: 101 | C68: 3 | D68: 20241010226 | J68: 缺考
A69: 67 | B69: 101 | C69: 3 | D69: 20241010228 | J69: 缺考
A70: 68 | B70: 101 | C70: 3 | D70: 20241010230 | J70: 缺考
A71: 69 | B71: 101 | C71: 3 | D71: 20241010301 | J71: 缺考
A72: 70 | B72: 101 | C72: 3 | D72: 20241010304 | J72: 缺考
A73: 71 | B73: 101 | C73: 3 | D73: 20241010307 | J73: 缺考
A74: 72 | B74: 101 | C74: 3 | D74: 20241010308 | J74: 缺考
A75: 73 | B75: 101 | C75: 3 | D75: 20241010310 | J75: 缺考
A76: 74 | B76: 101 | C76: 3 | D76: 20241010312 | J76: 缺考
A77: 75 | B77: 101 | C77: 3 | D77: 20241010314 | J77: 缺考
A78: 76 | B78: 101 | C78: 3 | D78: 20241010315 | J78: 缺考
A79: 77 | B79: 101 | C79: 3 | D79: 20241010317 | J79: 缺考
A80: 78 | B80: 101 | C80: 3 | D80: 20241010318 | J80: 缺考
A81: 79 | B81: 102 | C81: 4 | D81: 20241020324 | E81: 81.16 | G81: =E81+F81 -> 81.16 | H81: 1 | I81: 是
A82: 80 | B82: 102 | C82: 4 | D82: 20241020327 | E82: 74.66 | G82: 74.66 | H82: 2 | I82: 是
A83: 81 | B83: 102 | C83: 4 | D83: 20241020326 | E83: 74.13 | G83: 74.13 | H83: 3 | I83: 是
A84: 82 | B84: 102 | C84: 4 | D84: 20241020321 | E84: 70.41 | G84: 70.41 | H84: 4 | I84: 是
A85: 83 | B85: 102 | C85: 4 | D85: 20241020322 | E85: 68.81 | G85: 68.81 | H85: 5 | I85: 是
A86: 84 | B86: 102 | C86: 4 | D86: 20241020404 | E86: 68.47 | G86: 68.47 | H86: 6 | I86: 是
A87: 85 | B87: 102 | C87: 4 | D87: 20241020408 | E87: 67.79 | G87: 67.79 | H87: 7 | I87: 是
A88: 86 | B88: 102 | C88: 4 | D88: 20241020319 | E88: 66.82 | G88: 66.82 | H88: 8 | I88: 是
A89: 87 | B89: 102 | C89: 4 | D89: 20241020403 | E89: 65.43 | G89: 65.43 | H89: 9 | I89: 是
A90: 88 | B90: 102 | C90: 4 | D90: 20241020402 | E90: 65.39 | G90: 65.39 | H90: 10 | I90: 是
A91: 89 | B91: 102 | C91: 4 | D91: 20241020329 | E91: 64.01 | G91: 64.01 | H91: 11 | I91: 是
A92: 90 | B92: 102 | C92: 4 | D92: 20241020320 | E92: 47.66 | G92: 47.66 | H92: 12
A93: 91 | B93: 102 | C93: 4 | D93: 20241020323 | J93: 缺考
A94: 92 | B94: 102 | C94: 4 | D94: 20241020325 | J94: 缺考
A95: 93 | B95: 102 | C95: 4 | D95: 20241020328 | J95: 缺考
A96: 94 | B96: 102 | C96: 4 | D96: 20241020330 | J96: 缺考
A97: 95 | B97: 102 | C97: 4 | D97: 20241020401 | J97: 缺考
A98: 96 | B98: 102 | C98: 4 | D98: 20241020405 | J98: 缺考
A99: 97 | B99: 102 | C99: 4 | D99: 20241020406 | J99: 缺考
A100: 98 | B100: 102 | C100: 4 | D100: 20241020407 | J100: 缺考
A101: 99 | B101: 102 | C101: 4 | D101: 20241020409 | J101: 缺考
A102: 100 | B102: 103 | C102: 2 | D102: 20241030414 | E102: 78.10 | G102: =E102+F102 -> 78.10 | H102: 1 | I102: 是
A103: 101 | B103: 103 | C103: 2 | D103: 20241030415 | E103: 77.27 | G103: 77.27 | H103: 2 | I103: 是
A104: 102 | B104: 103 | C104: 2 | D104: 20241030612 | E104: 76.91 | G104: 76.91 | H104: 3 | I104: 是
A105: 103 | B105: 103 | C105: 2 | D105: 20241030507 | E105: 76.58 | G105: 76.58 | H105: 4 | I105: 是
A106: 104 | B106: 103 | C106: 2 | D106: 20241030510 | E106: 76.55 | G106: 76.55 | H106: 5 | I106: 是
A107: 105 | B107: 103 | C107: 2 | D107: 20241030526 | E107: 76.53 | G107: 76.53 | H107: 6 | I107: 是
A108: 106 | B108: 103 | C108: 2 | D108: 20241030601 | E108: 75.75 | G108: 75.75 | H108: 7
A109: 107 | B109: 103 | C109: 2 | D109: 20241030506 | E109: 75.43 | G109: 75.43 | H109: 8
A110: 108 | B110: 103 | C110: 2 | D110: 20241030416 | E110: 72.55 | G110: 72.55 | H110: 9
A111: 109 | B111: 103 | C111: 2 | D111: 20241030426 | E111: 72.19 | G111: 72.19 | H111: 10
A112: 110 | B112: 103 | C112: 2 | D112: 20241030412 | E112: 71.22 | G112: 71.22 | H112: 11
A113: 111 | B113: 103 | C113: 2 | D113: 20241030428 | E113: 69.40 | G113: 69.40 | H113: 12
A114: 112 | B114: 103 | C114: 2 | D114: 20241030530 | E114: 68.36 | G114: 68.36 | H114: 13
A115: 113 | B115: 103 | C115: 2 | D115: 20241030517 | E115: 68.32 | G115: 68.32 | H115: 14
A116: 114 | B116: 103 | C116: 2 | D116: 20241030615 | E116: 67.42 | G116: 67.42 | H116: 15
A117: 115 | B117: 103 | C117: 2 | D117: 20241030504 | E117: 67.39 | G117: 67.39 | H117: 16
A118: 116 | B118: 103 | C118: 2 | D118: 20241030418 | E118: 65.51 | G118: 65.51 | H118: 17
A119: 117 | B119: 103 | C119: 2 | D119: 20241030423 | E119: 64.87 | G119: 64.87 | H119: 18
A120: 118 | B120: 103 | C120: 2 | D120: 20241030419 | E120: 64.83 | G120: 64.83 | H120: 19
A121: 119 | B121: 103 | C121: 2 | D121: 20241030609 | E121: 62.79 | G121: 62.79 | H121: 20
A122: 120 | B122: 103 | C122: 2 | D122: 20241030521 | E122: 62.43 | G122: 62.43 | H122: 21
A123: 121 | B123: 103 | C123: 2 | D123: 20241030613 | E123: 60.17 | G123: 60.17 | H123: 22
A124: 122 | B124: 103 | C124: 2 | D124: 20241030518 | E124: 58.15 | G124: 58.15 | H124: 23
A125: 123 | B125: 103 | C125: 2 | D125: 20241030410 | J125: 缺考
A126: 124 | B126: 103 | C126: 2 | D126: 20241030411 | J126: 缺考
A127: 125 | B127: 103 | C127: 2 | D127: 20241030413 | J127: 缺考
A128: 126 | B128: 103 | C128: 2 | D128: 20241030417 | J128: 缺考
A129: 127 | B129: 103 | C129: 2 | D129: 20241030420 | J129: 缺考
A130: 128 | B130: 103 | C130: 2 | D130: 20241030421 | J130: 缺考
A131: 129 | B131: 103 | C131: 2 | D131: 20241030422 | J131: 缺考
A132: 130 | B132: 103 | C132: 2 | D132: 20241030424 | J132: 缺考
A133: 131 | B133: 103 | C133: 2 | D133: 20241030425 | J133: 缺考
A134: 132 | B134: 103 | C134: 2 | D134: 20241030427 | J134: 缺考
A135: 133 | B135: 103 | C135: 2 | D135: 20241030429 | J135: 缺考
A136: 134 | B136: 103 | C136: 2 | D136: 20241030430 | J136: 缺考
A137: 135 | B137: 103 | C137: 2 | D137: 20241030501 | J137: 缺考
A138: 136 | B138: 103 | C138: 2 | D138: 20241030502 | J138: 缺考
A139: 137 | B139: 103 | C139: 2 | D139: 20241030503 | J139: 缺考
A140: 138 | B140: 103 | C140: 2 | D140: 20241030505 | J140: 缺考
A141: 139 | B141: 103 | C141: 2 | D141: 20241030508 | J141: 缺考
A142: 140 | B142: 103 | C142: 2 | D142: 20241030509 | J142: 缺考
A143: 141 | B143: 103 | C143: 2 | D143: 20241030511 | J143: 缺考
A144: 142 | B144: 103 | C144: 2 | D144: 20241030512 | J144: 缺考
A145: 143 | B145: 103 | C145: 2 | D145: 20241030513 | J145: 缺考
A146: 144 | B146: 103 | C146: 2 | D146: 20241030514 | J146: 缺考
A147: 145 | B147: 103 | C147: 2 | D147: 20241030515 | J147: 缺考
A148: 146 | B148: 103 | C148: 2 | D148: 20241030516 | J148: 缺考
A149: 147 | B149: 103 | C149: 2 | D149: 20241030519 | J149: 缺考
A150: 148 | B150: 103 | C150: 2 | D150: 20241030520 | J150: 缺考
A151: 149 | B151: 103 | C151: 2 | D151: 20241030522 | J151: 缺考
A152: 150 | B152: 103 | C152: 2 | D152: 20241030523 | J152: 缺考
A153: 151 | B153: 103 | C153: 2 | D153: 20241030524 | J153: 缺考
A154: 152 | B154: 103 | C154: 2 | D154: 20241030525 | J154: 缺考
A155: 153 | B155: 103 | C155: 2 | D155: 20241030527 | J155: 缺考
A156: 154 | B156: 103 | C156: 2 | D156: 20241030528 | J156: 缺考
A157: 155 | B157: 103 | C157: 2 | D157: 20241030529 | J157: 缺考
A158: 156 | B158: 103 | C158: 2 | D158: 20241030602 | J158: 缺考
A159: 157 | B159: 103 | C159: 2 | D159: 20241030603 | J159: 缺考
A160: 158 | B160: 103 | C160: 2 | D160: 20241030604 | J160: 缺考
A161: 159 | B161: 103 | C161: 2 | D161: 20241030605 | J161: 缺考
A162: 160 | B162: 103 | C162: 2 | D162: 20241030606 | J162: 缺考
A163: 161 | B163: 103 | C163: 2 | D163: 20241030607 | J163: 缺考
A164: 162 | B164: 103 | C164: 2 | D164: 20241030608 | J164: 缺考
A165: 163 | B165: 103 | C165: 2 | D165: 20241030610 | J165: 缺考
A166: 164 | B166: 103 | C166: 2 | D166: 20241030611 | J166: 缺考
A167: 165 | B167: 103 | C167: 2 | D167: 20241030614 | J167: 缺考
A168: 166 | B168: 103 | C168: 2 | D168: 20241030616 | J168: 缺考
A169: 167 | B169: 103 | C169: 2 | D169: 20241030617 | J169: 缺考
A170: 168 | B170: 103 | C170: 2 | D170: 20241030618 | J170: 缺考
A171: 169 | B171: 103 | C171: 2 | D171: 20241030619 | J171: 缺考
A172: 170 | B172: 104 | C172: 3 | D172: 20241040625 | E172: 71.76 | G172: =E172+F172 -> 71.76 | H172: 1 | I172: 是
A173: 171 | B173: 104 | C173: 3 | D173: 20241040620 | J173: 缺考
A174: 172 | B174: 104 | C174: 3 | D174: 20241040621 | J174: 缺考
A175: 173 | B175: 104 | C175: 3 | D175: 20241040622 | J175: 缺考
A176: 174 | B176: 104 | C176: 3 | D176: 20241040623 | J176: 缺考
A177: 175 | B177: 104 | C177: 3 | D177: 20241040624 | J177: 缺考
A178: 176 | B178: 104 | C178: 3 | D178: 20241040626 | J178: 缺考
A179: 177 | B179: 104 | C179: 3 | D179: 20241040627 | J179: 缺考
A180: 178 | B180: 104 | C180: 3 | D180: 20241040628 | J180: 缺考
A181: 179 | B181: 105 | C181: 5 | D181: 20241050802 | E181: 80.99 | G181: =E181+F181 -> 80.99 | H181: 1 | I181: 是
A182: 180 | B182: 105 | C182: 5 | D182: 20241051106 | E182: 77.16 | G182: 77.16 | H182: 2 | I182: 是
A183: 181 | B183: 105 | C183: 5 | D183: 20241050824 | E183: 76.33 | G183: 76.33 | H183: 3 | I183: 是
A184: 182 | B184: 105 | C184: 5 | D184: 20241050706 | E184: 75.28 | G184: 75.28 | H184: 4 | I184: 是
A185: 183 | B185: 105 | C185: 5 | D185: 20241050703 | E185: 74.98 | G185: 74.98 | H185: 5 | I185: 是
A186: 184 | B186: 105 | C186: 5 | D186: 20241050714 | E186: 74.98 | G186: 74.98 | H186: 6 | I186: 是
A187: 185 | B187: 105 | C187: 5 | D187: 20241051121 | E187: 74.97 | G187: 74.97 | H187: 7 | I187: 是
A188: 186 | B188: 105 | C188: 5 | D188: 20241050928 | E188: 74.12 | G188: 74.12 | H188: 8 | I188: 是
A189: 187 | B189: 105 | C189: 5 | D189: 20241051013 | E189: 73.84 | G189: 73.84 | H189: 9 | I189: 是
A190: 188 | B190: 105 | C190: 5 | D190: 20241050716 | E190: 73.49 | G190: 73.49 | H190: 10 | I190: 是
A191: 189 | B191: 105 | C191: 5 | D191: 20241051130 | E191: 73.46 | G191: 73.46 | H191: 11 | I191: 是
A192: 190 | B192: 105 | C192: 5 | D192: 20241051117 | E192: 72.59 | G192: 72.59 | H192: 12 | I192: 是
A193: 191 | B193: 105 | C193: 5 | D193: 20241051102 | E193: 72.47 | G193: 72.47 | H193: 13 | I193: 是
A194: 192 | B194: 105 | C194: 5 | D194: 20241051018 | E194: 72.27 | G194: 72.27 | H194: 14 | I194: 是
A195: 193 | B195: 105 | C195: 5 | D195: 20241050729 | E195: 72.01 | G195: 72.01 | H195: 15 | I195: 是
A196: 194 | B196: 105 | C196: 5 | D196: 20241050920 | E196: 71.84 | G196: 71.84 | H196: 16
A197: 195 | B197: 105 | C197: 5 | D197: 20241051020 | E197: 71.46 | G197: 71.46 | H197: 17
A198: 196 | B198: 105 | C198: 5 | D198: 20241050722 | E198: 70.95 | G198: 70.95 | H198: 18
A199: 197 | B199: 105 | C199: 5 | D199: 20241050813 | E199: 70.53 | G199: 70.53 | H199: 19
A200: 198 | B200: 105 | C200: 5 | D200: 20241050713 | E200: 70.46 | G200: 70.46 | H200: 20
... 2096 more rows
